bitfinex/quotes_SOLUSD_20241202
["timestamp","ask_amount","ask_price","bid_price","bid_amount"]
[1733164159087,12.2176,224.39,224.35,4.468]
[1733164160753,12.2176,224.39,224.33,4.73089784]
[1733164161255,12.2176,224.39,224.33,0.26289784]
[1733164162080,11.1418,224.38,224.33,0.26289784]
[1733164169776,11.1418,224.38,224.33,8.6682232]
[1733164170599,12.2176,224.39,224.35,8.40532536]
[1733164170801,31.6133892,224.4,224.37,8.40532536]
[1733164170975,0.5233892,224.4,224.38,8.40532536]
[1733164171177,0.5233892,224.4,224.33,0.26289784]
[1733164171376,0.5233892,224.4,224.39,8.40532536]
[1733164171877,0.5233892,224.4,224.38,8.40532536]
[1733164172972,0.5233892,224.4,224.36,8.40532536]
[1733164173167,0.5233892,224.4,224.34,4.468]
[1733164173375,0.5233892,224.4,224.34,8.40532536]
[1733164173575,0.5233892,224.4,224.33,0.26289784]
[1733164173791,11.1413,224.39,224.33,0.26289784]
[1733164175402,32.2326,224.38,224.33,0.26289784]
[1733164176070,12.9826,224.37,224.33,0.26289784]
[1733164176495,11.1428,224.36,224.33,0.26289784]
[1733164183316,11.1428,224.36,224.33,9.784e-05]
[1733164184295,20.0,224.34,224.33,9.784e-05]
[1733164185491,20.12549,224.34,224.33,9.784e-05]
[1733164189715,11.1442,224.33,224.2,8.40532536]
[1733164191230,11.1442,224.33,224.21,4.468]
[1733164191520,11.1442,224.33,224.23,4.468]
[1733164191720,11.1442,224.33,224.24,8.40532536]
[1733164192923,11.1442,224.33,224.25,4.468]
[1733164194323,11.1442,224.33,224.23,4.468]
[1733164194630,11.1442,224.33,224.2,8.40532536]
[1733164195434,11.1442,224.33,224.21,4.468]
[1733164196210,11.1423,224.37,224.24,8.40532536]
[1733164196610,11.1423,224.37,224.25,4.468]
[1733164197332,33.4269,224.37,224.25,4.468]
[1733164201528,33.27229,224.36,224.17,44.4635]
[1733164201706,23.902374,224.34,224.19,8.40532536]
[1733164202115,23.902374,224.34,224.21,8.40532536]
[1733164202405,23.902374,224.34,224.22,4.468]
[1733164202607,0.12549,224.34,224.22,4.468]
[1733164203023,20.0,224.32,224.22,4.468]
[1733164204537,11.1452,224.31,224.22,4.468]
[1733164205126,11.1452,224.31,224.23,12.87332536]
[1733164205837,11.1452,224.31,224.2,4.468]
[1733164206339,20.0,224.3,224.15,20.0]
[1733164206512,20.0,224.3,224.17,8.40532536]
[1733164206712,20.0,224.3,224.18,4.468]
[1733164207344,20.0,224.3,224.2,4.468]
[1733164207545,11.1462,224.29,224.2,4.468]
[1733164207934,11.1447,224.33,224.23,12.87332536]
[1733164208255,11.1447,224.33,224.24,4.468]
[1733164208427,12.91745875,224.35,224.25,8.40532536]
[1733164208612,12.91745875,224.35,224.27,8.40532536]
[1733164209116,12.91745875,224.35,224.29,8.40532536]
[1733164209117,0.26235875,224.35,224.29,8.40532536]
[1733164209441,0.26235875,224.35,224.31,8.40532536]
[1733164209933,0.26235875,224.35,224.32,4.468]
[1733164211246,0.26235875,224.35,224.3,4.468]
[1733164211620,0.26235875,224.35,224.32,4.468]
[1733164213051,0.26235875,224.35,224.3,4.468]
[1733164213253,0.26235875,224.35,224.27,8.40532536]
[1733164214150,0.26235875,224.35,224.3,4.468]
[1733164214838,0.26235875,224.35,224.31,8.40532536]
[1733164215036,0.26235875,224.35,224.32,4.468]
[1733164216029,0.26235875,224.35,224.31,8.40532536]
[1733164217431,44.2299892,224.4,224.31,8.40532536]
[1733164220063,44.2299892,224.4,224.3,8.40532536]
[1733164220234,44.2299892,224.4,224.27,20.0]
[1733164220435,44.2299892,224.4,224.29,8.40532536]
[1733164220843,23.776884,224.39,224.22,70.0]
[1733164221043,0.12549,224.38,224.26,8.40532536]
[1733164221273,20.0,224.36,224.24,8.40532536]
[1733164221862,23.776884,224.35,224.24,8.40532536]
[1733164223167,23.776884,224.39,224.28,8.40532536]
[1733164223351,11.1421,224.38,224.3,8.40532536]
[1733164223547,11.1421,224.38,224.28,8.40532536]
[1733164226266,11.1421,224.38,224.29,4.468]
[1733164227338,11.1421,224.38,224.27,4.468]
[1733164227875,0.12549,224.37,224.27,4.468]
[1733164228080,20.0,224.35,224.27,4.468]
[1733164228549,20.0,224.35,224.28,4.468]
[1733164229375,31.1436,224.35,224.28,4.468]
[1733164229561,32.9298,224.34,224.28,4.468]
[1733164229881,0.12549,224.33,224.28,4.468]
[1733164230045,13.26359,224.33,224.21,4.468]
[1733164231050,0.12549,224.31,224.17,8.40532536]
[1733164231301,11.1457,224.3,224.18,4.468]
[1733164231474,31.7675,224.28,224.18,4.468]
[1733164232261,31.7675,224.28,224.16,4.468]
[1733164233265,31.7675,224.28,224.17,4.468]
[1733164233266,23.9971,224.26,224.17,4.468]
[1733164233470,0.12549,224.25,224.17,4.468]
[1733164234765,23.9971,224.26,224.18,4.468]
[1733164235170,23.9971,224.26,224.18,17.61238391]
[1733164236062,12.8494,224.26,224.21,17.61238391]
[1733164236263,12.8494,224.26,224.23,4.468]
[1733164236881,31.7675,224.28,224.23,4.468]
[1733164237056,31.7675,224.28,224.19,13.14438391]
[1733164237388,42.9147,224.28,224.18,4.468]
[1733164237682,0.12549,224.27,224.18,4.468]
[1733164238255,0.12549,224.27,224.17,4.468]
[1733164238988,0.12549,224.27,224.17,17.61238391]
[1733164239161,0.12549,224.27,224.19,4.468]
[1733164239783,11.1477,224.26,224.19,4.468]
[1733164240078,0.12549,224.25,224.19,4.468]
[1733164240275,0.12549,224.25,224.17,4.468]
[1733164240476,0.12549,224.23,224.17,4.468]
[1733164241184,0.12549,224.23,224.13,13.14438391]
[1733164241382,0.12549,224.21,224.12,4.468]
[1733164241590,0.12549,224.19,224.08,13.14438391]
[1733164241776,20.0,224.17,224.06,13.14438391]
[1733164242090,45.5056,224.15,224.07,13.14438391]
[1733164242390,45.5056,224.15,224.06,17.61238391]
[1733164243257,45.5056,224.15,224.06,4.468]
[1733164243458,0.12549,224.14,224.06,4.468]
[1733164243658,0.12549,224.14,224.04,13.14438391]
[1733164244073,0.12549,224.12,224.01,13.14438391]
[1733164244270,0.12549,224.12,224.0,13.14438391]
[1733164244471,0.12549,224.12,224.01,13.14438391]
[1733164244663,0.12549,224.12,223.94,30.918]
[1733164244664,0.12549,224.12,224.05,13.14438391]
[1733164244967,0.12549,224.14,224.04,13.14438391]
[1733164245189,0.12549,224.14,224.03,13.14438391]
[1733164245394,20.0,224.12,224.02,13.14438391]
[1733164245688,0.12549,224.11,224.01,13.14438391]
[1733164246089,0.12549,224.13,224.02,23.776884]
[1733164246314,0.12549,224.13,224.02,36.92126791]
[1733164246788,0.12549,224.13,224.04,23.776884]
[1733164247785,0.12549,224.13,224.02,23.776884]
[1733164248960,0.12549,224.13,224.02,36.92126791]
[1733164249161,0.12549,224.13,224.02,23.776884]
[1733164249592,0.12549,224.13,224.03,13.14438391]
[1733164250388,0.12549,224.13,224.04,23.776884]
[1733164250772,0.12549,224.13,224.04,36.92126791]
[1733164250971,45.5056,224.15,224.07,13.14438391]
[1733164251166,45.5056,224.15,224.12,36.92126791]
[1733164251388,33.0021,224.15,224.13,13.14438391]
[1733164251779,33.0021,224.15,224.14,13.14438391]
[1733164252094,45.4619,224.21,224.15,23.776884]
[1733164252278,45.4619,224.21,224.16,13.14438391]
[1733164253764,32.416,224.21,224.17,23.776884]
[1733164254102,32.416,224.21,224.18,13.14438391]
[1733164254265,32.416,224.21,224.14,13.14438391]
[1733164254470,32.416,224.21,224.15,23.776884]
[1733164256175,0.12549,224.2,224.08,20.0]
[1733164256380,0.12549,224.2,224.09,13.14438391]
[1733164257188,20.0,224.18,224.07,13.14438391]
[1733164257573,0.12549,224.2,224.07,13.14438391]
[1733164257774,0.12549,224.2,224.08,23.776884]
[1733164258085,0.12549,224.18,224.05,13.14438391]
[1733164259790,0.12549,224.15,224.05,13.14438391]
[1733164259997,0.12549,224.15,224.04,13.14438391]
[1733164260301,0.12549,224.13,224.02,13.14438391]
[1733164260501,0.12549,224.13,224.01,13.14438391]
[1733164260800,0.12549,224.13,224.02,13.14438391]
[1733164261603,0.12549,224.13,224.03,23.776884]
[1733164262606,0.12549,224.13,224.04,13.14438391]
[1733164262908,0.12549,224.13,224.06,13.14438391]
[1733164263075,31.1907,224.14,224.08,13.14438391]
[1733164263279,31.1907,224.14,224.09,13.14438391]
[1733164263801,31.1907,224.14,224.11,13.14438391]
[1733164264391,12.4704,224.19,224.13,13.14438391]
[1733164264569,31.2423,224.2,224.15,13.14438391]
[1733164265813,31.2423,224.2,224.16,23.776884]
[1733164266104,31.2423,224.2,224.15,13.14438391]
[1733164266483,31.2423,224.2,224.16,23.776884]
[1733164266883,31.2423,224.2,224.14,4.468]
[1733164267110,31.2423,224.2,224.13,13.14438391]
[1733164267413,31.2423,224.2,224.12,23.776884]
[1733164267786,31.2423,224.2,224.15,13.14438391]
[1733164271197,31.2423,224.2,224.17,13.14438391]
[1733164271517,12.5244,224.24,224.17,13.14438391]
[1733164271518,12.5244,224.24,224.17,17.61238391]
[1733164271716,31.1507,224.26,224.21,13.14438391]
[1733164272012,30.5077,224.31,224.23,13.14438391]
[1733164272182,30.5077,224.31,224.18,13.14438391]
[1733164272183,30.5077,224.31,224.26,13.14438391]
[1733164273194,12.9262,224.35,224.26,13.14438391]
[1733164273619,12.9262,224.35,224.26,17.61238391]
[1733164274197,23.902374,224.34,224.24,13.14438391]
[1733164275318,12.9262,224.35,224.28,13.14438391]
[1733164275524,30.949,224.36,224.28,13.14438391]
[1733164275726,30.949,224.36,224.3,13.14438391]
[1733164276803,30.949,224.36,224.32,13.14438391]
[1733164277003,13.8336892,224.4,224.32,13.14438391]
[1733164277509,0.5233892,224.4,224.34,13.14438391]
[1733164277723,0.5233892,224.4,224.36,13.14438391]
[1733164278508,0.5233892,224.4,224.34,13.14438391]
[1733164279439,0.5233892,224.4,224.36,13.14438391]
[1733164281117,0.5233892,224.4,224.32,13.14438391]
[1733164283227,0.5233892,224.4,224.36,13.14438391]
[1733164286650,0.5233892,224.4,224.38,13.14438391]
[1733164287352,0.5233892,224.4,224.3,24.66604744]
[1733164287533,0.5233892,224.4,224.39,13.14438391]
[1733164287730,0.5233892,224.4,224.39,36.92126791]
[1733164288033,0.5233892,224.4,224.39,50.06565182]
[1733164288227,33.2754,224.48,224.4,23.776884]
[1733164288418,32.0397,224.54,224.47,13.14438391]
[1733164289425,32.0397,224.54,224.46,13.14438391]
[1733164289744,32.0397,224.54,224.47,13.14438391]
[1733164290238,32.0397,224.54,224.46,13.14438391]
[1733164290413,32.0397,224.54,224.48,13.14438391]
[1733164290618,32.0397,224.54,224.49,13.14438391]
[1733164291040,32.0397,224.54,224.48,13.14438391]
[1733164291418,32.0397,224.54,224.49,13.14438391]
[1733164291860,32.0397,224.54,224.48,13.14438391]
[1733164292037,32.0397,224.54,224.47,13.14438391]
[1733164292348,32.0397,224.54,224.48,13.14438391]
[1733164292714,32.0397,224.54,224.47,13.14438391]
[1733164292915,32.0397,224.54,224.48,13.14438391]
[1733164293134,32.0397,224.54,224.47,13.14438391]
[1733164295132,32.0397,224.54,224.49,13.14438391]
[1733164295455,32.0397,224.54,224.51,13.14438391]
[1733164295619,32.0397,224.54,224.49,13.14438391]
[1733164297243,32.0397,224.54,224.48,13.14438391]
[1733164297439,32.0397,224.54,224.47,13.14438391]
[1733164297628,32.0397,224.54,224.48,13.14438391]
[1733164297834,32.0397,224.54,224.49,13.14438391]
[1733164298537,32.0397,224.54,224.48,13.14438391]
[1733164298733,32.0397,224.54,224.47,13.14438391]
[1733164299462,32.0397,224.54,224.45,13.14438391]
[1733164299637,32.0397,224.54,224.44,13.14438391]
[1733164299942,20.0,224.51,224.44,13.14438391]
[1733164300823,20.0,224.51,224.43,13.14438391]
[1733164301028,20.0,224.51,224.41,13.14438391]
[1733164302545,0.12549,224.5,224.4,13.14438391]
[1733164302751,0.12549,224.5,224.38,13.14438391]
[1733164302953,20.0,224.49,224.38,13.14438391]
[1733164303466,20.0,224.49,224.41,13.14438391]
[1733164303668,20.0,224.49,224.4,13.14438391]
[1733164304473,20.0,224.49,224.38,13.14438391]
[1733164304635,0.12549,224.48,224.38,13.14438391]
[1733164304841,19.87358046,224.45,224.38,13.14438391]
[1733164305266,0.12549,224.48,224.38,13.14438391]
[1733164305481,0.12549,224.44,224.34,13.14438391]
[1733164306165,0.12549,224.44,224.35,4.468]
[1733164306464,23.902374,224.44,224.32,13.14438391]
[1733164306659,0.12549,224.41,224.3,17.61238391]
[1733164306964,20.0,224.39,224.32,13.14438391]
[1733164307267,20.0,224.39,224.3,13.14438391]
[1733164307765,0.12549,224.38,224.3,13.14438391]
[1733164308142,0.12549,224.38,224.28,13.14438391]
[1733164309065,0.12549,224.36,224.28,13.14438391]
[1733164309236,0.12549,224.36,224.27,4.468]
[1733164309641,0.12549,224.36,224.27,17.61238391]
[1733164310263,0.12549,224.36,224.28,13.14438391]
[1733164310869,20.0,224.39,224.31,13.14438391]
[1733164311042,31.1044,224.42,224.33,13.14438391]
[1733164311464,31.1044,224.42,224.3,17.61238391]
[1733164311642,11.1403,224.41,224.28,13.14438391]
[1733164311842,11.1403,224.41,224.29,13.14438391]
[1733164312144,31.1044,224.42,224.31,13.14438391]
[1733164312572,0.12549,224.41,224.31,13.14438391]
[1733164313450,20.0,224.39,224.31,13.14438391]
[1733164313769,20.0,224.39,224.33,13.14438391]
[1733164314069,31.1044,224.42,224.36,13.14438391]
[1733164315836,31.1044,224.42,224.34,13.14438391]
[1733164316242,31.1044,224.42,224.35,4.468]
[1733164316949,20.0,224.39,224.35,4.468]
[1733164318248,20.0,224.39,224.33,4.468]
[1733164318454,20.0,224.39,224.3,17.61238391]
[1733164318653,20.0,224.39,224.32,13.14438391]
[1733164319871,20.0,224.39,224.3,17.61238391]
[1733164320454,20.0,224.39,224.31,13.14438391]
[1733164320960,20.0,224.39,224.35,13.14438391]
[1733164321351,20.0,224.39,224.34,13.14438391]
[1733164321880,20.0,224.39,224.35,13.14438391]
[1733164322773,31.1044,224.42,224.29,13.14438391]
[1733164322774,31.1044,224.42,224.38,13.14438391]
[1733164323077,12.3439,224.45,224.39,13.14438391]
[1733164323466,12.3439,224.45,224.42,13.14438391]
[1733164323672,30.6649,224.47,224.43,13.14438391]
[1733164323847,30.6649,224.47,224.46,13.14438391]
[1733164324050,12.5791,224.52,224.46,13.14438391]
[1733164324352,30.6649,224.53,224.46,13.14438391]
[1733164325047,20.0,224.5,224.46,13.14438391]
[1733164326778,20.0,224.5,224.45,13.14438391]
[1733164327656,20.0,224.5,224.43,13.14438391]
[1733164328177,20.0,224.5,224.41,13.14438391]
[1733164328676,0.12549,224.49,224.38,13.14438391]
[1733164328980,0.12549,224.49,224.32,31.5907]
[1733164328981,0.12549,224.49,224.39,13.14438391]
[1733164329466,0.12549,224.49,224.32,31.5907]
[1733164329467,0.12549,224.49,224.4,13.14438391]
[1733164329670,0.12549,224.49,224.41,13.14438391]
[1733164329858,0.12549,224.49,224.38,13.14438391]
[1733164330677,0.12549,224.49,224.39,13.14438391]
[1733164330874,0.12549,224.49,224.38,13.14438391]
[1733164331170,0.12549,224.49,224.39,13.14438391]
[1733164331881,0.12549,224.49,224.41,13.14438391]
[1733164332467,20.0,224.5,224.41,13.14438391]
[1733164332878,20.0,224.5,224.42,13.14438391]
[1733164333090,20.0,224.5,224.4,13.14438391]
[1733164333900,20.0,224.5,224.41,13.14438391]
[1733164334184,20.0,224.5,224.42,13.14438391]
[1733164336068,20.0,224.5,224.43,4.458]
[1733164336469,20.0,224.53,224.43,4.458]
[1733164336668,20.0,224.53,224.45,4.458]
[1733164336890,11.1329,224.56,224.45,4.458]
[1733164336891,12.5791,224.57,224.45,4.458]
[1733164338095,20.0,224.54,224.45,4.458]
[1733164339571,20.0,224.49,224.41,4.458]
[1733164339773,20.0,224.49,224.43,4.458]
[1733164339972,20.0,224.49,224.44,13.14438391]
[1733164340185,32.4327,224.52,224.46,13.14438391]
[1733164340385,32.4327,224.52,224.5,13.14438391]
[1733164340590,43.8564,224.57,224.52,4.458]
[1733164340984,43.8564,224.57,224.51,13.14438391]
[1733164341188,43.8564,224.57,224.53,13.14438391]
[1733164341189,31.2773,224.57,224.53,13.14438391]
[1733164341391,31.1165892,224.62,224.53,13.14438391]
[1733164342290,23.902374,224.61,224.53,13.14438391]
[1733164342489,23.902374,224.61,224.52,13.14438391]
[1733164342886,20.0,224.58,224.51,13.14438391]
[1733164343391,20.0,224.58,224.5,13.14438391]
[1733164343786,20.0,224.58,224.49,13.14438391]
[1733164344218,20.0,224.58,224.51,13.14438391]
[1733164345805,20.0,224.58,224.5,13.14438391]
[1733164346088,20.0,224.58,224.51,13.14438391]
[1733164346808,20.0,224.58,224.5,13.14438391]
[1733164347399,20.0,224.58,224.52,13.14438391]
[1733164348501,20.0,224.58,224.54,13.14438391]
[1733164348700,20.0,224.59,224.54,13.14438391]
[1733164348906,20.0,224.59,224.53,13.14438391]
[1733164349605,31.1165892,224.62,224.56,13.14438391]
[1733164349919,31.1165892,224.62,224.55,13.14438391]
[1733164350091,31.1165892,224.62,224.54,13.14438391]
[1733164350613,31.1165892,224.62,224.52,13.14438391]
[1733164350817,31.1165892,224.62,224.54,13.14438391]
[1733164351118,20.0,224.59,224.51,13.14438391]
[1733164351438,20.0,224.59,224.49,13.14438391]
[1733164351805,23.902374,224.58,224.5,13.14438391]
[1733164352688,20.0,224.59,224.5,13.14438391]
[1733164353309,20.0,224.55,224.49,13.14438391]
[1733164353811,20.0,224.55,224.48,13.14438391]
[1733164354016,20.0,224.55,224.49,13.14438391]
[1733164355093,23.776884,224.54,224.49,13.14438391]
[1733164355508,23.776884,224.54,224.5,13.14438391]
[1733164355912,0.12549,224.61,224.5,13.14438391]
[1733164356096,23.776884,224.58,224.5,13.14438391]
[1733164357115,23.776884,224.58,224.52,13.14438391]
[1733164357319,23.776884,224.58,224.51,13.14438391]
[1733164357809,20.0,224.59,224.53,13.14438391]
[1733164358211,20.0,224.59,224.55,13.14438391]
[1733164358416,31.1165892,224.62,224.55,13.14438391]
[1733164358793,31.1165892,224.62,224.54,13.14438391]
[1733164359200,31.1165892,224.62,224.55,13.14438391]
[1733164360810,31.1165892,224.62,224.54,13.14438391]
[1733164361032,23.776884,224.61,224.54,13.14438391]
[1733164361197,23.776884,224.61,224.55,17.60238391]
[1733164361599,23.776884,224.61,224.55,4.458]
[1733164362093,23.776884,224.61,224.53,4.458]
[1733164362695,20.0,224.58,224.54,4.458]
[1733164362907,23.776884,224.57,224.54,4.458]
[1733164363120,23.776884,224.57,224.51,4.458]
[1733164364128,23.776884,224.57,224.51,17.60238391]
[1733164364300,23.776884,224.57,224.53,4.458]
[1733164365517,23.776884,224.57,224.52,17.60238391]
[1733164365928,23.776884,224.57,224.54,4.458]
[1733164366926,23.776884,224.57,224.55,4.458]
[1733164368130,23.776884,224.57,224.52,13.14438391]
[1733164368131,23.776884,224.57,224.52,4.458]
[1733164368924,20.0,224.59,224.54,4.458]
[1733164369796,20.0,224.59,224.57,4.458]
[1733164370004,31.1165892,224.62,224.57,4.458]
[1733164370921,23.776884,224.61,224.55,4.458]
[1733164372118,23.776884,224.61,224.54,4.458]
[1733164372825,23.776884,224.61,224.53,4.458]
[1733164373035,23.776884,224.57,224.53,4.458]
[1733164373236,23.776884,224.57,224.51,4.458]
[1733164374236,23.776884,224.57,224.52,4.458]
[1733164374434,20.0,224.59,224.52,4.458]
[1733164375128,20.0,224.59,224.51,4.458]
[1733164375320,20.0,224.59,224.52,4.458]
[1733164375503,43.776884,224.58,224.52,4.458]
[1733164376212,43.776884,224.58,224.49,4.458]
[1733164379031,20.0,224.58,224.49,4.458]
[1733164380454,23.776884,224.57,224.41,44.8724]
[1733164380655,23.776884,224.51,224.44,4.458]
[1733164380825,23.776884,224.51,224.45,8.38806379]
[1733164381027,23.776884,224.51,224.49,8.38806379]
[1733164381553,44.7713,224.59,224.49,8.38806379]
[1733164381727,44.7713,224.59,224.52,4.458]
[1733164382552,31.5439,224.59,224.52,4.458]
[1733164383722,31.5439,224.59,224.54,4.458]
[1733164383940,0.5233892,224.62,224.54,4.458]
[1733164384557,0.5233892,224.62,224.55,8.38806379]
[1733164384767,0.5233892,224.62,224.55,12.84606379]
[1733164385242,23.776884,224.6,224.55,8.38806379]
[1733164386252,23.776884,224.6,224.56,4.458]
[1733164388138,23.776884,224.6,224.54,4.458]
[1733164388338,23.776884,224.6,224.56,4.458]
[1733164388558,23.776884,224.6,224.55,8.38806379]
[1733164388994,23.776884,224.6,224.56,8.38806379]
[1733164389166,23.776884,224.6,224.58,4.458]
[1733164389460,23.776884,224.6,224.59,8.38806379]
[1733164389660,23.776884,224.6,224.58,8.38806379]
[1733164390049,23.776884,224.6,224.59,4.458]
[1733164390365,23.776884,224.6,224.56,8.38806379]
[1733164390735,23.776884,224.6,224.49,0.88829538]
[1733164390938,23.776884,224.6,224.55,8.38806379]
[1733164391468,23.776884,224.6,224.49,0.88829538]
[1733164391633,23.776884,224.6,224.54,8.38806379]
[1733164393067,23.776884,224.6,224.55,8.38806379]
[1733164393259,23.776884,224.6,224.54,8.38806379]
[1733164393766,23.776884,224.6,224.53,8.38806379]
[1733164394163,23.776884,224.56,224.5,8.38806379]
[1733164394544,23.776884,224.56,224.52,8.38806379]
[1733164395451,23.776884,224.56,224.53,8.38806379]
[1733164396245,20.0,224.61,224.55,8.38806379]
[1733164396674,23.776884,224.6,224.54,8.38806379]
[1733164397471,23.776884,224.6,224.53,8.38806379]
[1733164398474,23.776884,224.6,224.54,8.38806379]
[1733164399947,23.776884,224.6,224.53,8.38806379]
[1733164400570,23.776884,224.6,224.54,8.38806379]
[1733164401150,23.776884,224.6,224.55,4.458]
[1733164401757,23.776884,224.6,224.46,0.8884228]
[1733164401962,23.776884,224.6,224.51,8.38806379]
[1733164402355,23.776884,224.6,224.53,4.458]
[1733164402550,23.776884,224.6,224.52,8.38806379]
[1733164402976,23.776884,224.6,224.53,8.38806379]
[1733164403374,23.776884,224.6,224.54,4.458]
[1733164403556,23.776884,224.6,224.55,4.458]
[1733164404458,23.776884,224.6,224.54,4.458]
[1733164405676,23.776884,224.6,224.53,4.458]
[1733164406772,23.776884,224.6,224.46,5.3464228]
[1733164406974,23.776884,224.6,224.51,4.458]
[1733164407158,20.0,224.61,224.45,70.0]
[1733164407159,20.0,224.61,224.55,12.84606379]
[1733164408482,23.776884,224.6,224.55,12.84606379]
[1733164409682,23.776884,224.6,224.46,5.34648529]
[1733164409886,23.776884,224.6,224.53,4.458]
[1733164412381,23.776884,224.6,224.54,12.84606379]
[1733164412585,20.0,224.57,224.46,5.34648529]
[1733164412793,23.776884,224.56,224.53,12.84606379]
[1733164414189,20.0,224.61,224.53,12.84606379]
[1733164414371,43.776884,224.6,224.53,12.84606379]
[1733164414570,20.0,224.6,224.53,12.84606379]
[1733164414791,23.776884,224.59,224.53,12.72166379]
[1733164415900,23.776884,224.59,224.53,4.458]
[1733164417003,23.776884,224.59,224.52,4.458]
[1733164417181,23.776884,224.59,224.51,4.458]
[1733164420797,23.776884,224.55,224.49,4.458]
[1733164421532,20.0,224.52,224.49,4.458]
[1733164421710,23.776884,224.51,224.48,0.05398494]
[1733164421879,43.776884,224.49,224.48,0.05398494]
[1733164422686,75.493184,224.49,224.48,0.05398494]
[1733164425311,75.493184,224.49,224.38,8.38806379]
[1733164425312,23.776884,224.41,224.28,32.8685]
[1733164425484,23.776884,224.41,224.3,8.38806379]
[1733164425485,23.776884,224.37,224.3,8.38806379]
[1733164425689,23.776884,224.37,224.34,4.458]
[1733164425990,20.0,224.35,224.32,8.38806379]
[1733164426191,23.776884,224.34,224.32,8.38806379]
[1733164426817,23.776884,224.34,224.32,4.458]
[1733164427202,23.776884,224.34,224.33,12.84606379]
[1733164427586,23.776884,224.34,224.33,4.458]
[1733164427913,23.776884,224.34,224.33,12.84606379]
[1733164430212,23.776884,224.34,224.32,4.458]
[1733164430902,23.776884,224.34,224.33,8.38806379]
[1733164431315,23.776884,224.34,224.3,8.38806379]
[1733164431919,23.776884,224.34,224.31,4.458]
[1733164432115,23.776884,224.34,224.24,5.34729663]
[1733164432318,23.776884,224.34,224.2,0.88938671]
[1733164432504,23.776884,224.34,224.27,8.38806379]
[1733164432818,23.776884,224.34,224.28,4.458]
[1733164435709,23.776884,224.34,224.19,5.34747711]
[1733164435710,20.0,224.31,224.19,5.34747711]
[1733164435905,23.776884,224.3,224.26,4.458]
[1733164436109,23.776884,224.3,224.25,8.38806379]
[1733164439028,36.6265,224.31,224.17,0.88956242]
[1733164439029,23.776884,224.26,224.21,8.38806379]
[1733164440303,23.776884,224.26,224.23,8.38806379]
[1733164440620,23.776884,224.26,224.18,34.44191589]
[1733164440621,23.776884,224.26,224.25,8.38806379]
[1733164441021,23.776884,224.3,224.25,8.38806379]
[1733164441199,23.776884,224.3,224.18,34.44191589]
[1733164441200,16.6265,224.31,224.28,8.38806379]
[1733164441700,16.6265,224.31,224.3,8.38806379]
[1733164442238,16.6265,224.31,224.28,8.38806379]
[1733164442737,16.6265,224.31,224.22,0.88936624]
[1733164442738,16.6265,224.31,224.26,8.38806379]
[1733164442919,23.776884,224.3,224.26,8.38806379]
[1733164444706,23.776884,224.3,224.16,76.2149]
[1733164444927,23.776884,224.3,224.16,77.10451255]
[1733164445131,23.776884,224.3,224.22,8.38806379]
[1733164445523,20.0,224.27,224.22,8.38806379]
[1733164445715,23.776884,224.26,224.22,8.38806379]
[1733164446108,23.776884,224.26,224.23,4.458]
[1733164447034,23.776884,224.26,224.21,12.84606379]
[1733164447410,23.776884,224.26,224.14,0.88965054]
[1733164447621,23.776884,224.26,224.2,8.38806379]
[1733164447911,23.776884,224.26,224.19,12.84606379]
[1733164448442,23.776884,224.26,224.2,8.38806379]
[1733164449734,23.776884,224.26,224.13,4.458]
[1733164450041,23.776884,224.24,224.17,12.84606379]
[1733164450444,23.776884,224.24,224.17,4.458]
[1733164450812,23.776884,224.24,224.17,12.84606379]
[1733164451044,23.776884,224.24,224.18,8.38806379]
[1733164451739,16.0387,224.25,223.99,70.0]
[1733164451740,16.4589,224.18,223.99,70.0]
[1733164451935,16.4589,224.18,224.02,8.38806379]